fUST/lending_fUST_20240817
["ID","MTS","AMOUNT","RATE_DAILY","PERIOD"]
[335099588,1723824687403,-544.51,0.00046849,120]
[335099589,1723824687412,-693.59,0.00046849,120]
[335099590,1723824687422,-548.58,0.00046849,120]
[335099591,1723824687431,-2148.57,0.00046849,120]
[335099592,1723824687440,-284.17309809,0.00046849,120]
[335099593,1723824687449,-500.0,0.00046849,120]
[335099594,1723824687459,-1328.88,0.00046849,120]
[335099595,1723824687468,-502.18547272,0.00046849,120]
[335099596,1723824687478,-500.0,0.00046849,120]
[335099597,1723824687487,-500.0,0.00046849,120]
[335099598,1723824687497,-500.0,0.00046849,120]
[335099599,1723824687506,-635.25,0.00046849,120]
[335099600,1723824687515,-500.0,0.00046849,120]
[335099601,1723824687524,-596.74966437,0.00046849,120]
[335099602,1723824687533,-1192.76,0.00046849,7]
[335099603,1723824687542,-500.0,0.00046849,120]
[335099604,1723824687552,-1451.49,0.00046849,60]
[335099605,1723824687562,-500.0,0.00046849,120]
[335099606,1723824687572,-508.86555954,0.00046849,120]
[335099607,1723824687581,-500.0,0.00046849,120]
[335099608,1723824687591,-535.68837575,0.00046849,120]
[335099609,1723824687602,-918.61,0.00046849,120]
[335099610,1723824687612,-500.0,0.00046849,120]
[335099611,1723824687621,-596.74,0.00046849,120]
[335099612,1723824687630,-150.5298337,0.00046849,120]
[335099613,1723824687640,-500.0,0.00046849,120]
[335099614,1723824687650,-500.0,0.00046849,120]
[335099615,1723824687659,-500.0,0.00046849,120]
[335099616,1723824687668,-547.91,0.00046849,120]
[335099617,1723824687677,-629.55,0.00046849,120]
[335099618,1723824687687,-643.97,0.00046849,120]
[335099619,1723824687696,-500.0,0.00046849,120]
[335099620,1723824687705,-500.0,0.00046849,120]
[335099621,1723824687715,-500.0,0.00046849,120]
[335099622,1723824687725,-246.76639959,0.00046849,120]
[335099623,1723824687734,-609.08,0.00046849,120]
[335099624,1723824687744,-1016.45,0.00046849,120]
[335099625,1723824687753,-788.01,0.00046849,120]
[335099626,1723824687762,-518.24,0.00046849,120]
[335099627,1723824687771,-500.0,0.00046849,120]
[335099628,1723824687781,-894.34,0.00046849,120]
[335099629,1723824687790,-500.0,0.00046849,120]
[335099630,1723824687800,-643.91,0.00046849,120]
[335099631,1723824687809,-900.79,0.00046849,120]
[335099632,1723824687818,-884.47,0.00046849,120]
[335099633,1723824687827,-737.86,0.00046849,120]
[335099634,1723824687837,-1177.09,0.00046849,120]
[335099635,1723824687847,-500.0,0.00046849,120]
[335099636,1723824687857,-746.07,0.00046849,120]
[335099637,1723824687866,-668.74,0.00046849,120]
[335099638,1723824687875,-1036.78,0.00046849,120]
[335099639,1723824687885,-673.85,0.00046849,120]
[335099640,1723824687895,-783.75,0.00046849,120]
[335099641,1723824687904,-902.95,0.00046849,120]
[335099642,1723824687914,-563.5,0.00046849,120]
[335099643,1723824687924,-545.31,0.00046849,120]
[335099644,1723824687932,-631.65,0.00046849,120]
[335099645,1723824687942,-500.0,0.00046849,120]
[335099646,1723824687951,-1145.47,0.00046849,120]
[335099647,1723824687961,-901.73,0.00046849,120]
[335099648,1723824687971,-515.36170026,0.00046849,120]
[335099649,1723824687980,-10260.67,0.00046849,120]
[335099650,1723824687989,-500.0,0.00046849,120]
[335099651,1723824687999,-764.92,0.00046849,120]
[335099652,1723824688009,-716.98,0.00046849,120]
[335099653,1723824688018,-2987.82,0.00046849,21]
[335099654,1723824688027,-666.64,0.00046849,120]
[335099655,1723824688037,-1201.98,0.00046849,120]
[335099656,1723824688046,-637.84,0.00046849,120]
[335099657,1723824688055,-2511.6,0.00046849,120]
[335099658,1723824688064,-549.73172002,0.00046849,120]
[335099659,1723824688073,-723.54,0.00046849,120]
[335099660,1723824688083,-576.16,0.00046849,120]
[335099661,1723824688092,-500.0,0.00046849,120]
[335099662,1723824688103,-1882.03,0.00046849,120]
[335099663,1723824688113,-1029.66,0.00046849,120]
[335099664,1723824688122,-1896.05,0.00046849,120]
[335099665,1723824688131,-4568.8,0.00046849,120]
[335099666,1723824688141,-815.8,0.00046849,120]
[335099667,1723824688150,-947.25,0.00046849,120]
[335099668,1723824688159,-797.6,0.00046849,120]
[335099669,1723824688168,-975.37,0.00046849,120]
[335099670,1723824688177,-1724.04,0.00046849,120]
[335099671,1723824688186,-1061.46,0.00046849,120]
[335099672,1723824688195,-848.93,0.00046849,120]
[335099673,1723824688204,-1146.8,0.00046849,120]
[335099674,1723824688214,-500.0,0.00046849,120]
[335099675,1723824688223,-500.0,0.00046849,120]
[335099676,1723824688236,-979.65,0.00046849,120]
[335099677,1723824688245,-500.0,0.00046849,120]
[335099678,1723824688254,-894.36,0.00046849,120]
[335099679,1723824688263,-500.0,0.00046849,120]
[335099680,1723824688274,-500.0,0.00046849,120]
[335099681,1723824688284,-645.74,0.00046849,120]
[335099682,1723824688294,-641.42,0.00046849,120]
[335099683,1723824688304,-1321.3,0.00046849,120]
[335099684,1723824688314,-13031.02,0.00046849,120]
[335099685,1723824688323,-936.44,0.00046849,120]
[335099686,1723824688332,-673.1,0.00046849,120]
[335099687,1723824688342,-526.95,0.00046849,120]
[335099688,1723824688357,-561.51,0.00046849,120]
[335099689,1723824688366,-500.0,0.00046849,120]
[335099690,1723824688375,-641.46,0.00046849,120]
[335099691,1723824688384,-2425.41,0.00046849,120]
[335099692,1723824688393,-1762.68,0.00046849,120]
[335099693,1723824688403,-500.0,0.00046849,120]
[335099694,1723824688413,-2314.36,0.00046849,120]
[335099695,1723824688422,-700.74,0.00046849,120]
[335099696,1723824688431,-666.41,0.00046849,120]
[335099697,1723824688441,-1019.62,0.00046849,120]
[335099698,1723824688451,-500.0,0.00046849,120]
[335099699,1723824688459,-664.99,0.00046849,120]
[335099700,1723824688468,-839.23,0.00046849,120]
[335099701,1723824688478,-4725.59,0.00046849,120]
[335099702,1723824688487,-567.41,0.00046849,120]
[335099703,1723824688497,-833.73,0.00046849,120]
[335099704,1723824688506,-1124.87,0.00046849,120]
[335099705,1723824688516,-616.41,0.00046849,120]
[335099706,1723824688525,-500.0,0.00046849,120]
[335099707,1723824688534,-628.45,0.00046849,120]
[335099708,1723824688543,-519.03,0.00046849,120]
[335099709,1723824688553,-1015.36,0.00046849,120]
[335099710,1723824688562,-707.5,0.00046849,120]
[335099711,1723824688571,-6729.3,0.00046849,120]
[335099712,1723824688580,-500.0,0.0004689,30]
[335099713,1723824688590,-500.0,0.0004689,30]
[335099714,1723824688601,-500.0,0.0004689,30]
[335099715,1723824688611,-30717.89879965,0.00047,120]
[335099716,1723824688620,-1365.05679456,0.00047,120]
[335099717,1723824688630,-151.0,0.00047,90]
[335099718,1723824688640,-10000.0,0.00047,30]
[335099719,1723824688650,-10000.0,0.00047,30]
[335099720,1723824688659,-18804.0,0.00047,30]
[335099721,1723824688669,-935.0,0.00047,30]
[335099722,1723824688678,-500.0,0.00047123,120]
[335099723,1723824688688,-500.0,0.00047123,120]
[335099724,1723824688697,-524.43559214,0.00047123,120]
[335099725,1723824688707,-2456.91,0.00047123,120]
[335099726,1723824688716,-503.41,0.00047123,120]
[335099727,1723824688725,-500.0,0.00047123,120]
[335099728,1723824688734,-500.0,0.00047123,120]
[335099729,1723824688744,-500.0,0.00047123,7]
[335099730,1723824688753,-590.69,0.00047123,120]
[335099731,1723824688762,-500.0,0.00047123,120]
[335099732,1723824688772,-645.31,0.00047123,120]
[335099733,1723824688782,-699.13,0.00047123,120]
[335099734,1723824688791,-500.0,0.00047123,120]
[335099735,1723824688800,-500.0,0.00047123,120]
[335099736,1723824688810,-200.0,0.00047123,7]
[335099737,1723824688819,-644.7,0.00047123,120]
[335099738,1723824688829,-544.51,0.00047123,120]
[335099739,1723824688838,-693.59,0.00047123,120]
[335099740,1723824688847,-548.58,0.00047123,120]
[335099741,1723824688857,-2148.57,0.00047123,120]
[335099742,1723824688866,-500.0,0.00047123,120]
[335099743,1723824688875,-1328.88,0.00047123,120]
[335099744,1723824688885,-500.0,0.00047123,120]
[335099745,1723824688894,-583.09542151,0.00047123,120]
[335099746,1723824688904,-500.0,0.00047123,120]
[335099747,1723824688913,-635.25,0.00047123,120]
[335099748,1723824688922,-500.0,0.00047123,120]
[335099749,1723824688932,-1192.76,0.00047123,7]
[335099750,1723824688942,-1451.49,0.00047123,60]
[335099751,1723824688952,-586.12087464,0.00047123,120]
[335099752,1723824688961,-500.0,0.00047123,120]
[335099753,1723824688971,-503.20047372,0.00047123,120]
[335099754,1723824688981,-918.61,0.00047123,120]
[335099755,1723824688990,-500.0,0.00047123,120]
[335099756,1723824688999,-596.74,0.00047123,120]
[335099757,1723824689009,-500.0,0.00047123,120]
[335099758,1723824689020,-500.0,0.00047123,120]
[335099759,1723824689031,-500.0,0.00047123,120]
[335099760,1723824689042,-547.91,0.00047123,120]
[335099761,1723824689051,-629.55,0.00047123,120]
[335099762,1723824689060,-643.97,0.00047123,120]
[335099763,1723824689070,-500.0,0.00047123,120]
[335099764,1723824689079,-500.0,0.00047123,120]
[335099765,1723824689088,-500.0,0.00047123,120]
[335099766,1723824689099,-609.08,0.00047123,120]
[335099767,1723824689108,-1016.45,0.00047123,120]
[335099768,1723824689117,-788.01,0.00047123,120]
[335099769,1723824689126,-518.24,0.00047123,120]
[335099770,1723824689135,-500.0,0.00047123,120]
[335099771,1723824689144,-894.34,0.00047123,120]
[335099772,1723824689154,-584.16865347,0.00047123,120]
[335099773,1723824689164,-643.91,0.00047123,120]
[335099774,1723824689173,-900.79,0.00047123,120]
[335099775,1723824689183,-884.47,0.00047123,120]
[335099776,1723824689192,-737.86,0.00047123,120]
[335099777,1723824689202,-1177.09,0.00047123,120]
[335099778,1723824689212,-500.0,0.00047123,120]
[335099779,1723824689222,-746.07,0.00047123,120]
[335099780,1723824689235,-1036.78,0.00047123,120]
[335099781,1723824689245,-668.74,0.00047123,120]
[335099782,1723824689254,-673.85,0.00047123,120]
[335099783,1723824689264,-783.75,0.00047123,120]
[335099784,1723824689275,-902.95,0.00047123,120]
[335099785,1723824689284,-563.5,0.00047123,120]
[335099786,1723824689293,-545.31,0.00047123,120]
[335099787,1723824689303,-631.65,0.00047123,120]
[335099788,1723824689314,-500.0,0.00047123,120]
[335099789,1723824689323,-1145.47,0.00047123,120]
[335099790,1723824689332,-901.73,0.00047123,120]
[335099791,1723824689342,-10260.67,0.00047123,120]
[335099792,1723824689353,-500.0,0.00047123,120]
[335099793,1723824689361,-764.92,0.00047123,120]
[335099794,1723824689371,-2987.82,0.00047123,21]
[335099795,1723824689380,-716.98,0.00047123,120]
[335099796,1723824689390,-666.64,0.00047123,120]
[335099797,1723824689400,-1201.98,0.00047123,120]
[335099798,1723824689410,-637.84,0.00047123,120]
[335099799,1723824689421,-2511.6,0.00047123,120]
[335099800,1723824689432,-723.54,0.00047123,120]
[335099801,1723824689442,-576.16,0.00047123,120]
[335099802,1723824689452,-500.0,0.00047123,120]
[335099803,1723824689461,-1882.03,0.00047123,120]
[335099804,1723824689470,-1029.66,0.00047123,120]
[335099805,1723824689480,-1896.05,0.00047123,120]
[335099806,1723824689490,-815.8,0.00047123,120]
[335099807,1723824689499,-4568.8,0.00047123,120]
[335099808,1723824689509,-947.25,0.00047123,120]
[335099809,1723824689518,-797.6,0.00047123,120]
[335099810,1723824689528,-975.37,0.00047123,120]
[335099811,1723824689538,-1724.04,0.00047123,120]
[335099812,1723824689547,-1061.46,0.00047123,120]
[335099813,1723824689557,-848.93,0.00047123,120]
[335099814,1723824689566,-1146.8,0.00047123,120]
[335099815,1723824689575,-500.0,0.00047123,120]
[335099816,1723824689585,-500.0,0.00047123,120]
[335099817,1723824689594,-979.65,0.00047123,120]
[335099818,1723824689606,-500.0,0.00047123,120]
[335099819,1723824689615,-894.36,0.00047123,120]
[335099820,1723824689625,-511.62224646,0.00047123,120]
[335099821,1723824689634,-500.0,0.00047123,120]
[335099822,1723824689644,-645.74,0.00047123,120]
[335099823,1723824689655,-641.42,0.00047123,120]
[335099824,1723824689665,-1321.3,0.00047123,120]
[335099825,1723824689675,-13031.02,0.00047123,120]
[335099826,1723824689685,-936.44,0.00047123,120]
[335099827,1723824689797,-673.1,0.00047123,120]
[335099828,1723824689817,-526.95,0.00047123,120]
[335099829,1723824689826,-561.51,0.00047123,120]
[335099830,1723824689836,-500.0,0.00047123,120]
[335099831,1723824689849,-641.46,0.00047123,120]
[335099832,1723824689860,-2425.41,0.00047123,120]
[335099833,1723824689870,-1762.68,0.00047123,120]
[335099834,1723824689883,-500.0,0.00047123,120]
[335099835,1723824689894,-2314.36,0.00047123,120]
[335099836,1723824689905,-700.74,0.00047123,120]
[335099837,1723824689915,-666.41,0.00047123,120]
[335099838,1723824689924,-1019.62,0.00047123,120]
[335099839,1723824689934,-500.0,0.00047123,120]
[335099840,1723824689943,-664.99,0.00047123,120]
[335099841,1723824689953,-839.23,0.00047123,120]
[335099842,1723824689963,-4725.59,0.00047123,120]
[335099843,1723824689972,-567.41,0.00047123,120]
[335099844,1723824689981,-833.73,0.00047123,120]
[335099845,1723824689991,-1124.87,0.00047123,120]
[335099846,1723824690000,-616.41,0.00047123,120]
[335099847,1723824690010,-500.0,0.00047123,120]
[335099848,1723824690019,-628.45,0.00047123,120]
[335099849,1723824690029,-519.03,0.00047123,120]
[335099850,1723824690038,-1015.36,0.00047123,120]
[335099851,1723824690047,-707.5,0.00047123,120]
[335099852,1723824690056,-6729.3,0.00047123,120]
[335099853,1723824690065,-500.0,0.00047397,120]
[335099854,1723824690075,-500.0,0.00047397,120]
[335099855,1723824690084,-2456.91,0.00047397,120]
[335099856,1723824690094,-503.41,0.00047397,120]
[335099857,1723824690105,-500.0,0.00047397,120]
[335099858,1723824690115,-500.0,0.00047397,120]
[335099859,1723824690124,-500.0,0.00047397,7]
[335099860,1723824690134,-590.69,0.00047397,120]
[335099861,1723824690143,-271.30018189,0.00047397,120]
[335099862,1723824690153,-645.31,0.00047397,120]
[335099863,1723824690162,-699.13,0.00047397,120]
[335099864,1723824690171,-500.0,0.00047397,120]
[335099865,1723824690180,-500.0,0.00047397,120]
[335099866,1723824690190,-200.0,0.00047397,7]
[335099867,1723824690199,-644.7,0.00047397,120]
[335099868,1723824690209,-544.51,0.00047397,120]
[335099869,1723824690218,-693.59,0.00047397,120]
[335099870,1723824690230,-548.58,0.00047397,120]
[335099871,1723824690238,-2148.57,0.00047397,120]
[335099872,1723824690248,-500.0,0.00047397,120]
[335099873,1723824690257,-1328.88,0.00047397,120]
[335099874,1723824690267,-500.0,0.00047397,120]
[335099875,1723824690277,-500.0,0.00047397,120]
[335099876,1723824690287,-635.25,0.00047397,120]
[335099877,1723824690296,-500.0,0.00047397,120]
[335099878,1723824690307,-1192.76,0.00047397,7]
[335099879,1723824690316,-500.0,0.00047397,120]
[335099880,1723824690325,-1451.49,0.00047397,60]
[335099881,1723824690334,-918.61,0.00047397,120]
[335099882,1723824690343,-500.0,0.00047397,120]
[335099883,1723824690355,-596.74,0.00047397,120]
[335099884,1723824690365,-500.0,0.00047397,120]
[335099885,1723824690375,-500.0,0.00047397,120]
[335099886,1723824690384,-465.88242347,0.00047397,120]
[335099887,1723824690393,-547.91,0.00047397,120]
[335099888,1723824690402,-629.55,0.00047397,120]
[335099889,1723824690411,-643.97,0.00047397,120]
[335099890,1723824690420,-500.0,0.00047397,120]
[335099891,1723824690429,-500.0,0.00047397,120]
[335099892,1723824690438,-500.0,0.00047397,120]
[335099893,1723824690447,-609.08,0.00047397,120]
[335099894,1723824690457,-1016.45,0.00047397,120]
[335099895,1723824690467,-788.01,0.00047397,120]
[335099896,1723824690476,-518.24,0.00047397,120]
[335099897,1723824690485,-500.0,0.00047397,120]
[335099898,1723824690494,-894.34,0.00047397,120]
[335099899,1723824690503,-643.91,0.00047397,120]
[335099900,1723824690512,-900.79,0.00047397,120]
[335099901,1723824690522,-884.47,0.00047397,120]
[335099902,1723824690532,-737.86,0.00047397,120]
[335099903,1723824690542,-1177.09,0.00047397,120]
[335099904,1723824690552,-500.0,0.00047397,120]
[335099905,1723824690561,-746.07,0.00047397,120]
[335099906,1723824690571,-1036.78,0.00047397,120]
[335099907,1723824690580,-668.74,0.00047397,120]
[335099908,1723824690590,-673.85,0.00047397,120]
[335099909,1723824690601,-783.75,0.00047397,120]
[335099910,1723824690610,-902.95,0.00047397,120]
[335099911,1723824690620,-563.5,0.00047397,120]
[335099912,1723824690629,-545.31,0.00047397,120]
[335099913,1723824690639,-631.65,0.00047397,120]
[335099914,1723824690648,-500.0,0.00047397,120]
[335099915,1723824690658,-1145.47,0.00047397,120]
[335099916,1723824690668,-901.73,0.00047397,120]
[335099917,1723824690678,-10260.67,0.00047397,120]
[335099918,1723824690687,-500.0,0.00047397,120]
[335099919,1723824690697,-764.92,0.00047397,120]
[335099920,1723824690707,-2987.82,0.00047397,21]
[335099921,1723824690717,-716.98,0.00047397,120]
[335099922,1723824690726,-666.64,0.00047397,120]
[335099923,1723824690736,-1201.98,0.00047397,120]
[335099924,1723824690746,-637.84,0.00047397,120]
[335099925,1723824690755,-2511.6,0.00047397,120]
[335099926,1723824690765,-723.54,0.00047397,120]
[335099927,1723824690774,-576.16,0.00047397,120]
[335099928,1723824690784,-500.0,0.00047397,120]
[335099929,1723824690793,-1882.03,0.00047397,120]
[335099930,1723824690802,-1029.66,0.00047397,120]
[335099931,1723824690811,-1896.05,0.00047397,120]
[335099932,1723824690821,-815.8,0.00047397,120]
[335099933,1723824690829,-4568.8,0.00047397,120]
[335099934,1723824690838,-947.25,0.00047397,120]
[335099935,1723824690849,-797.6,0.00047397,120]
[335099936,1723824690858,-975.37,0.00047397,120]
[335099937,1723824690868,-1724.04,0.00047397,120]
[335099938,1723824690878,-1061.46,0.00047397,120]
[335099939,1723824690888,-848.93,0.00047397,120]
[335099940,1723824690897,-1146.8,0.00047397,120]
[335099941,1723824690907,-350.60427494,0.00047397,120]
[335099942,1723824690916,-500.0,0.00047397,120]
[335099943,1723824690926,-979.65,0.00047397,120]
[335099944,1723824690935,-500.0,0.00047397,120]
[335099945,1723824690945,-894.36,0.00047397,120]
[335099946,1723824690955,-500.0,0.00047397,120]
[335099947,1723824690964,-645.74,0.00047397,120]
[335099948,1723824690974,-641.42,0.00047397,120]
[335099949,1723824690983,-1321.3,0.00047397,120]
[335099950,1723824690992,-13031.02,0.00047397,120]
[335099951,1723824691002,-936.44,0.00047397,120]
[335099952,1723824691012,-673.1,0.00047397,120]
[335099953,1723824691022,-526.95,0.00047397,120]
[335099954,1723824691032,-561.51,0.00047397,120]
[335099955,1723824691041,-500.0,0.00047397,120]
[335099956,1723824691051,-641.46,0.00047397,120]
[335099957,1723824691061,-2425.41,0.00047397,120]
[335099958,1723824691071,-1762.68,0.00047397,120]
[335099959,1723824691080,-500.0,0.00047397,120]
[335099960,1723824691090,-2314.36,0.00047397,120]
[335099961,1723824691103,-700.74,0.00047397,120]
[335099962,1723824691113,-666.41,0.00047397,120]
[335099963,1723824691123,-1019.62,0.00047397,120]
[335099964,1723824691132,-500.0,0.00047397,120]
[335099965,1723824691142,-664.99,0.00047397,120]
[335099966,1723824691151,-839.23,0.00047397,120]
[335099967,1723824691160,-4725.59,0.00047397,120]
[335099968,1723824691170,-567.41,0.00047397,120]
[335099969,1723824691180,-833.73,0.00047397,120]
[335099970,1723824691189,-1124.87,0.00047397,120]
[335099971,1723824691199,-616.41,0.00047397,120]
[335099972,1723824691208,-500.0,0.00047397,120]
[335099973,1723824691218,-628.45,0.00047397,120]
[335099974,1723824691228,-519.03,0.00047397,120]
[335099975,1723824691239,-1015.36,0.00047397,120]
[335099976,1723824691249,-707.5,0.00047397,120]
[335099977,1723824691258,-6729.3,0.00047397,120]
[335099978,1723824691269,-185927.20002477,0.0004744,30]
[335099979,1723824691278,-1000.0,0.000475,2]
[335099980,1723824691287,-500.0,0.00047671,120]
[335099981,1723824691296,-500.0,0.00047671,120]
[335099982,1723824691306,-2456.91,0.00047671,120]
[335099983,1723824691316,-503.41,0.00047671,120]
[335099984,1723824691326,-500.0,0.00047671,120]
[335099985,1723824691335,-500.0,0.00047671,120]
[335099986,1723824691345,-500.0,0.00047671,7]
[335099987,1723824691357,-590.69,0.00047671,120]
[335099988,1723824691366,-645.31,0.00047671,120]
[335099989,1723824691375,-699.13,0.00047671,120]
[335099990,1723824691385,-500.0,0.00047671,120]
[335099991,1723824691394,-500.0,0.00047671,120]
[335099992,1723824691403,-200.0,0.00047671,7]
[335099993,1723824691412,-644.7,0.00047671,120]
[335099994,1723824691421,-544.51,0.00047671,120]
[335099995,1723824691431,-693.59,0.00047671,120]
[335099996,1723824691441,-548.58,0.00047671,120]
[335099997,1723824691450,-2148.57,0.00047671,120]
[335099998,1723824691460,-500.0,0.00047671,120]
[335099999,1723824691469,-1328.88,0.00047671,120]
[335100000,1723824691478,-500.0,0.00047671,120]
[335100001,1723824691487,-516.69932517,0.00047671,120]
[335100002,1723824691499,-635.25,0.00047671,120]
[335100003,1723824691510,-500.0,0.00047671,120]
[335100004,1723824691520,-1192.76,0.00047671,7]
[335100005,1723824691529,-500.0,0.00047671,120]
[335100006,1723824691539,-1451.49,0.00047671,60]
[335100007,1723824691548,-918.61,0.00047671,120]
[335100008,1723824691557,-157.22330165,0.00047671,120]
[335100009,1723824691566,-596.74,0.00047671,120]
[335100010,1723824691576,-500.0,0.00047671,120]
[335100011,1723824691585,-500.0,0.00047671,120]
[335100012,1723824691595,-547.91,0.00047671,120]
[335100013,1723824691605,-629.55,0.00047671,120]
[335100014,1723824691615,-643.97,0.00047671,120]
[335100015,1723824691625,-500.0,0.00047671,120]
[335100016,1723824691634,-500.0,0.00047671,120]
[335100017,1723824691644,-500.0,0.00047671,120]
[335100018,1723824691654,-609.08,0.00047671,120]
[335100019,1723824691665,-1016.45,0.00047671,120]
[335100020,1723824691675,-788.01,0.00047671,120]
[335100021,1723824691685,-518.24,0.00047671,120]
[335100022,1723824691695,-500.0,0.00047671,120]
[335100023,1723824691704,-894.34,0.00047671,120]
[335100024,1723824691714,-643.91,0.00047671,120]
[335100025,1723824691724,-900.79,0.00047671,120]
[335100026,1723824691733,-884.47,0.00047671,120]
[335100027,1723824691744,-737.86,0.00047671,120]
[335100028,1723824691753,-1177.09,0.00047671,120]
[335100029,1723824691763,-500.0,0.00047671,120]
[335100030,1723824691773,-746.07,0.00047671,120]
[335100031,1723824691782,-1036.78,0.00047671,120]
[335100032,1723824691792,-668.74,0.00047671,120]
[335100033,1723824691803,-673.85,0.00047671,120]
[335100034,1723824691813,-783.75,0.00047671,120]
[335100035,1723824691823,-902.95,0.00047671,120]
[335100036,1723824691833,-563.5,0.00047671,120]
[335100037,1723824691842,-545.31,0.00047671,120]
[335100038,1723824691853,-631.65,0.00047671,120]
[335100039,1723824691863,-500.0,0.00047671,120]
[335100040,1723824691872,-1145.47,0.00047671,120]
[335100041,1723824691882,-901.73,0.00047671,120]
[335100042,1723824691891,-10260.67,0.00047671,120]
[335100043,1723824691900,-500.0,0.00047671,120]
[335100044,1723824691909,-764.92,0.00047671,120]
[335100045,1723824691918,-2987.82,0.00047671,21]
[335100046,1723824691928,-716.98,0.00047671,120]
[335100047,1723824691937,-666.64,0.00047671,120]
[335100048,1723824691947,-1201.98,0.00047671,120]
[335100049,1723824691956,-637.84,0.00047671,120]
[335100050,1723824691966,-2511.6,0.00047671,120]
[335100051,1723824691975,-723.54,0.00047671,120]
[335100052,1723824691985,-576.16,0.00047671,120]
[335100053,1723824691995,-500.0,0.00047671,120]
[335100054,1723824692005,-1882.03,0.00047671,120]
[335100055,1723824692015,-1029.66,0.00047671,120]
[335100056,1723824692025,-1896.05,0.00047671,120]
[335100057,1723824692034,-815.8,0.00047671,120]
[335100058,1723824692044,-4568.8,0.00047671,120]
[335100059,1723824692054,-947.25,0.00047671,120]
[335100060,1723824692064,-797.6,0.00047671,120]
[335100061,1723824692074,-975.37,0.00047671,120]
[335100062,1723824692084,-1724.04,0.00047671,120]
[335100063,1723824692095,-1061.46,0.00047671,120]
[335100064,1723824692109,-1146.8,0.00047671,120]
[335100065,1723824692118,-848.93,0.00047671,120]
[335100066,1723824692128,-222.37062128,0.00047671,120]
[335100067,1723824692137,-979.65,0.00047671,120]
[335100068,1723824692147,-500.0,0.00047671,120]
[335100069,1723824692157,-894.36,0.00047671,120]
[335100070,1723824692168,-500.0,0.00047671,120]
[335100071,1723824692177,-645.74,0.00047671,120]
[335100072,1723824692187,-641.42,0.00047671,120]
[335100073,1723824692196,-1321.3,0.00047671,120]
[335100074,1723824692205,-13031.02,0.00047671,120]
[335100075,1723824692214,-936.44,0.00047671,120]
[335100076,1723824692224,-673.1,0.00047671,120]
[335100077,1723824692238,-526.95,0.00047671,120]
[335100078,1723824692247,-561.51,0.00047671,120]
[335100079,1723824692257,-500.0,0.00047671,120]
[335100080,1723824692267,-641.46,0.00047671,120]
[335100081,1723824692276,-2425.41,0.00047671,120]
[335100082,1723824692286,-1762.68,0.00047671,120]
[335100083,1723824692295,-500.0,0.00047671,120]
[335100084,1723824692305,-2314.36,0.00047671,120]
[335100085,1723824692317,-700.74,0.00047671,120]
[335100086,1723824692431,-666.41,0.00047671,120]
[335100087,1723824692441,-1019.62,0.00047671,120]